bitfinex-derivatives/quotes_SOLF0:USTF0_20251023
["timestamp","ask_amount","ask_price","bid_price","bid_amount"]
[1761259860665,2.78,190.16,190.1,2.43515519]
[1761259860862,4.81260663,190.17,190.13,2.43515519]
[1761259861065,7.59260663,190.18,190.13,2.43515519]
[1761259861260,2.78,190.18,190.13,2.43515519]
[1761259864767,2.78,190.18,190.11,2.43515519]
[1761259865275,2.78,190.18,190.07,2.43515519]
[1761259866061,2.78,190.17,190.07,2.43515519]
[1761259867368,2.78,190.16,190.07,2.43515519]
[1761259868065,2.78,190.15,190.07,2.43515519]
[1761259869366,2.78,190.15,190.06,4.7338]
[1761259871870,2.78,190.15,190.04,48.2344]
[1761259872167,2.78,190.14,190.04,48.2344]
[1761259872658,2.78,190.13,190.04,48.2344]
[1761259872866,2.78,190.13,190.05,4.7341]
[1761259876960,4.78170028,190.16,190.05,2.43515519]
[1761259877267,2.78,190.17,190.05,2.43515519]
[1761259877869,2.78,190.17,190.1,2.43515519]
[1761259878366,2.78,190.16,190.1,2.43515519]
[1761259882071,2.78,190.16,190.08,4.7333]
[1761259882271,2.78,190.16,190.1,2.43515519]
[1761259886282,2.78,190.2,190.1,2.43515519]
[1761259886481,2.78,190.18,190.1,2.43515519]
[1761259886684,2.75,190.17,190.12,1.55702139]
[1761259887081,2.75,190.16,190.12,1.55702139]
[1761259887379,21.99151933,190.25,190.14,1.55702139]
[1761259887380,2.75,190.18,190.14,1.55702139]
[1761259887578,2.75,190.23,190.16,1.55702139]
[1761259887777,9.7241963,190.3,190.12,43.48]
[1761259887778,2.75,190.21,190.19,1.55702139]
[1761259890583,2.75,190.21,190.17,1.55702139]
[1761259896385,2.75,190.21,190.08,9.68042885]
[1761259896684,2.75,190.21,190.15,1.55702139]
[1761259896891,2.73,190.2,190.13,1.55702139]
[1761259897287,2.73,190.19,190.13,1.55702139]
[1761259899487,4.28702139,190.19,190.11,1.55702139]
[1761259899688,2.73,190.18,190.11,1.55702139]
[1761259903905,2.73,190.18,190.09,45.03702139]
[1761259904103,2.73,190.17,190.11,1.55702139]
[1761259907307,2.73,190.17,190.09,49.77002139]
[1761259907910,4.28702139,190.17,190.09,49.77002139]
[1761259908110,2.73,190.16,190.09,43.48]
[1761259908998,2.73,190.16,190.09,45.03702139]
[1761259909202,2.73,190.16,190.09,43.48]
[1761259909502,2.73,190.15,190.09,45.03702139]
[1761259912610,2.73,190.15,190.11,1.55702139]
[1761259916704,2.73,190.15,190.13,1.55702139]
[1761259920114,2.73,190.15,190.09,48.2131]
[1761259920315,2.73,190.15,190.13,1.55702139]
[1761259928615,2.83,190.14,190.13,1.55702139]
[1761259928923,2.83,190.14,190.12,1.55702139]
[1761259931226,2.83,190.13,190.12,1.55702139]
[1761259939328,7.73468952,190.13,190.12,1.55702139]
[1761259939524,4.90468952,190.13,190.08,43.48]
[1761259939837,9.7241963,190.24,190.08,43.48]
[1761259939838,2.83,190.16,190.08,43.48]
[1761259940429,4.90658444,190.15,190.08,43.48]
[1761259940632,2.83,190.16,190.08,43.48]
[1761259940821,2.83,190.16,190.15,1.55702139]
[1761259941028,7.73639119,190.16,190.15,1.55702139]
[1761259941728,2.83,190.15,190.13,1.55702139]
[1761259943333,4.90923823,190.14,190.13,1.55702139]
[1761259943635,7.73923823,190.14,190.13,1.55702139]
[1761259948338,2.83,190.13,190.11,1.55702139]
[1761259948734,2.83,190.13,190.09,2.43325521]
[1761259953539,6.76566243,190.16,190.09,2.43325521]
[1761259953841,4.91246884,190.15,190.09,2.43325521]
[1761259954042,4.91246884,190.14,190.12,2.43325521]
[1761259954243,2.87,190.16,190.12,2.43325521]
[1761259954541,4.91225854,190.15,190.12,2.43325521]
[1761259954743,2.87,190.2,190.13,43.46]
[1761259954942,2.87,190.18,190.15,2.43325521]
[1761259955143,4.91161131,190.17,190.15,2.43325521]
[1761259955348,4.91161131,190.16,190.15,2.43325521]
[1761259955747,2.87,190.18,190.15,2.43325521]
[1761259956141,11.50648852,190.2,190.15,2.43325521]
[1761259956444,2.87,190.22,190.15,2.43325521]
[1761259957047,2.87,190.22,190.16,2.43325521]
[1761259957048,2.87,190.21,190.16,2.43325521]
[1761259974962,2.87,190.21,190.16,7.16455521]
[1761259978359,2.0,190.21,190.16,7.16455521]
[1761259978563,2.87,190.2,190.16,7.16455521]
[1761259980262,2.87,190.2,190.14,4.7317]
[1761259982368,2.61,190.19,190.14,4.7317]
[1761259984369,2.61,190.19,190.16,4.7313]
[1761259985066,2.61,190.19,190.16,7.16455521]
[1761259986568,5.825e-05,190.26,190.18,2.43325521]
[1761259986765,1.77136841,190.31,190.25,2.43325521]
[1761259986963,2.61,190.37,190.3,2.43325521]
[1761259987164,2.61,190.37,190.33,2.43325521]
[1761259987463,2.61,190.37,190.34,43.44]
[1761259988561,2.61,190.37,190.34,2.43325521]
[1761259988763,2.61,190.37,190.33,43.44]
[1761259988962,2.61,190.37,190.32,12.5]
[1761259992165,2.61,190.37,190.34,4.83713705]
[1761259992373,2.61,190.37,190.35,4.2582158]
[1761259992571,2.61,190.37,190.36,4.2582158]
[1761259993877,2.61,190.37,190.36,9.09535285]
[1761259995876,2.61,190.37,190.36,4.2582158]
[1761259997569,2.0,190.37,190.36,10.70773186]
[1761259998077,4.61,190.37,190.36,4.2582158]
[1761260001878,2.0,190.37,190.36,4.2582158]
[1761260004580,2.61,190.39,190.36,4.2582158]
[1761260004877,2.61,190.39,190.37,10.68667686]
[1761260005078,2.61,190.39,190.38,4.2582158]
[1761260007981,2.61,190.39,190.38,9.07557484]
[1761260010380,2.61,190.39,190.38,1.3682158]
[1761260014574,2.66,190.38,190.35,4.81735904]
[1761260016588,2.66,190.38,190.35,4.82260454]
[1761260017289,2.66,190.38,190.34,4.82260454]
[1761260017482,2.66,190.38,190.34,6.37618244]
[1761260017678,2.66,190.38,190.34,4.82260454]
[1761260017885,2.66,190.37,190.31,6.37618244]
[1761260018187,2.66,190.37,190.31,1.5535779]
[1761260022386,2.66,190.37,190.22,4.7299]
[1761260022586,2.66,190.37,190.29,1.5535779]
[1761260022787,2.66,190.37,190.31,1.5535779]
[1761260023292,2.66,190.37,190.3,1.5535779]
[1761260025296,1.5535779,190.36,190.28,1.5535779]
[1761260025596,2.66,190.35,190.28,1.5535779]
[1761260030794,1.5535779,190.34,190.26,1.5535779]
[1761260030998,1.5535779,190.32,190.24,1.5535779]
[1761260031200,2.66,190.31,190.24,1.5535779]
[1761260037102,2.66,190.31,190.26,1.5535779]
[1761260038304,2.66,190.31,190.28,1.5535779]
[1761260041701,4.87575785,190.4,190.3,1.5535779]
[1761260041702,2.65,190.35,190.3,1.5535779]
[1761260054323,2.65,190.34,190.3,1.5535779]
[1761260055424,2.65,190.34,190.26,1.5535779]
[1761260058224,2.65,190.34,190.25,1.5535779]
[1761260058225,1.5535779,190.33,190.25,1.5535779]
[1761260058428,2.65,190.32,190.24,1.5535779]
[1761260070736,2.65,190.32,190.23,2.42969173]
[1761260089152,2.65,190.32,190.22,2.42969173]
[1761260090853,2.65,190.32,190.22,8.85815279]
[1761260092147,2.65,190.32,190.22,2.42969173]
[1761260095256,2.65,190.32,190.22,7.15949173]
[1761260095449,4.73,190.35,190.28,2.42969173]
[1761260095851,4.73,190.35,190.31,2.42969173]
[1761260096154,2.73,190.34,190.31,2.42969173]
[1761260097259,2.0,190.35,190.31,2.42969173]
[1761260098453,4.73,190.35,190.31,2.42969173]
[1761260103760,2.0,190.35,190.31,2.42969173]
[1761260104365,4.7,190.35,190.31,2.42969173]
[1761260108074,2.0,190.35,190.34,2.42969173]
[1761260108766,2.7,190.41,190.34,2.42969173]
[1761260109776,2.7,190.41,190.37,2.42969173]
[1761260110771,2.7,190.41,190.3,2.42969173]
[1761260110772,2.7,190.41,190.34,2.42969173]
[1761260116271,2.7,190.41,190.33,4.727]
[1761260116469,2.7,190.4,190.33,7.15669173]
[1761260120772,2.7,190.4,190.36,2.42969173]
[1761260120971,2.0,190.41,190.36,2.42969173]
[1761260121482,4.7,190.41,190.36,2.42969173]
[1761260124181,2.0,190.41,190.36,7.15599173]
[1761260124584,2.0,190.41,190.39,2.42969173]
[1761260126579,2.7,190.6,190.41,15.79]
[1761260126887,2.7,190.6,190.53,2.42969173]
[1761260129293,2.7,190.6,190.56,2.42969173]
[1761260129677,2.7,190.6,190.53,2.42969173]
[1761260129881,2.7,190.6,190.5,43.46]
[1761260129882,2.7,190.6,190.52,2.42969173]
[1761260130786,2.7,190.6,190.54,1.55018378]
[1761260131085,4.25018378,190.6,190.5,43.46]
[1761260131392,2.7,190.6,190.53,1.55018378]
[1761260133889,2.61,190.59,190.53,1.55018378]
[1761260134392,2.61,190.59,190.51,1.55018378]
[1761260139897,1.55018378,190.58,190.51,1.55018378]
[1761260140199,2.61,190.57,190.51,1.55018378]
[1761260141401,2.61,190.57,190.53,1.55018378]
[1761260143304,2.61,190.57,190.47,144.63700621]
[1761260143499,2.61,190.57,190.52,1.55018378]
[1761260144092,2.61,190.57,190.47,139.91330621]
[1761260144093,2.61,190.57,190.5,1.55018378]
[1761260146897,2.61,190.57,190.49,1.55018378]
[1761260147200,1.55018378,190.56,190.49,1.55018378]
[1761260147600,2.61,190.55,190.49,1.55018378]
[1761260147902,2.61,190.55,190.47,97.98348999]
[1761260149593,2.61,190.55,190.49,1.55018378]
[1761260151109,2.61,190.55,190.51,1.55018378]
[1761260151703,1.55018378,190.61,190.53,1.55018378]
[1761260151899,2.61,190.6,190.53,1.55018378]
[1761260160124,2.61,190.6,190.47,101.15680621]
[1761260160426,2.61,190.6,190.53,1.55018378]
[1761260162421,1.55018378,190.6,190.53,1.55018378]
[1761260162616,2.84,190.59,190.53,1.55018378]
[1761260164825,2.84,190.59,190.55,1.55018378]
[1761260166424,2.84,190.59,190.5,4.7228]
[1761260166626,2.84,190.59,190.54,1.55018378]
[1761260169929,2.84,190.59,190.52,1.55018378]
[1761260170235,2.84,190.54,190.46,1.55018378]
[1761260173633,2.84,190.52,190.44,1.55018378]
[1761260173837,2.84,190.5,190.44,1.55018378]
[1761260180739,4.39018378,190.5,190.42,1.55018378]
[1761260181040,2.84,190.49,190.42,1.55018378]
[1761260184242,1.55018378,190.48,190.41,1.55018378]
[1761260184446,2.84,190.45,190.37,1.55018378]
[1761260184641,2.84,190.43,190.35,1.55018378]
[1761260189049,2.84,190.43,190.37,1.55018378]
[1761260189951,4.84,190.43,190.37,1.55018378]
[1761260190262,2.64,190.42,190.37,1.55018378]
[1761260192056,2.64,190.42,190.29,20.4879]
[1761260192348,2.64,190.42,190.37,1.55018378]
[1761260192849,2.64,190.42,190.34,2.42687041]
[1761260194252,2.64,190.42,190.31,2.42687041]
[1761260195151,2.64,190.42,190.31,7.15447041]
[1761260195654,2.64,190.42,190.31,2.42687041]
[1761260200353,2.64,190.42,190.31,7.15437041]
[1761260200657,2.64,190.42,190.34,2.42687041]
[1761260201058,2.64,190.41,190.34,2.42687041]
[1761260203058,4.64,190.41,190.34,2.42687041]
[1761260207163,2.0,190.41,190.37,2.42687041]
[1761260208064,4.64,190.41,190.37,2.42687041]
[1761260215575,2.64,190.4,190.37,2.42687041]
[1761260217577,2.64,190.4,190.34,7.15367041]
[1761260218577,2.64,190.4,190.34,4.7268]
[1761260218772,2.64,190.4,190.34,7.15367041]
[1761260220078,2.64,190.4,190.35,4.7264]
[1761260222888,2.64,190.4,190.36,4.7262]
[1761260227583,2.64,190.4,190.34,4.7268]
[1761260227775,2.64,190.4,190.31,2.42687041]
[1761260228586,2.64,190.4,190.29,9.68042885]
[1761260228985,2.64,190.4,190.32,4.7273]
[1761260230383,2.0,190.41,190.34,2.42687041]
[1761260230587,2.0,190.41,190.35,43.4]
[1761260231988,2.0,190.41,190.37,4.726]
[1761260234986,3.85177866,190.47,190.4,2.42687041]
[1761260235186,6.73156018,190.5,190.41,43.4]
[1761260235488,2.88,190.5,190.43,2.42687041]
[1761260235689,2.88,190.5,190.43,7.15137041]
[1761260235888,2.88,190.5,190.44,4.82446104]
[1761260236084,2.88,190.5,190.45,4.82446104]
[1761260236283,2.88,190.5,190.46,4.82446104]
[1761260236490,2.88,190.5,190.47,4.82446104]
[1761260236687,2.88,190.5,190.48,4.82446104]
[1761260236888,2.88,190.5,190.49,4.82446104]
[1761260240291,2.88,190.5,190.43,4.7245]
[1761260241797,2.88,190.5,190.44,4.81619914]
[1761260241985,2.88,190.5,190.45,4.81619914]
[1761260242191,2.88,190.5,190.46,4.81619914]
[1761260242390,2.88,190.5,190.47,4.81619914]
[1761260242590,2.88,190.5,190.48,4.81619914]
[1761260242786,2.88,190.5,190.49,4.81619914]
[1761260250297,4.88,190.5,190.49,4.81619914]
[1761260253492,5.92,190.5,190.49,1.92619914]
[1761260253699,2.82,190.48,190.39,1.55179494]
[1761260253900,2.82,190.47,190.41,1.55179494]
[1761260254205,2.82,190.47,190.43,1.55179494]
[1761260257809,2.82,190.47,190.39,4.7255]
[1761260258012,2.82,190.47,190.42,1.55179494]
[1761260259998,2.82,190.47,190.44,1.55179494]
[1761260266117,2.82,190.46,190.44,1.55179494]
[1761260267816,2.0,190.46,190.44,1.55179494]
[1761260268016,2.82,190.45,190.44,1.55179494]
[1761260269116,4.82,190.46,190.44,1.55179494]
[1761260269514,2.0,190.45,190.44,1.55179494]
[1761260270725,4.82,190.45,190.44,1.55179494]
[1761260280234,2.61,190.44,190.43,1.55179494]
[1761260283931,4.61,190.45,190.43,1.55179494]
[1761260285132,2.61,190.44,190.43,1.55179494]
[1761260289445,2.61,190.44,190.4,11.17968492]
[1761260289647,2.61,190.44,190.38,6.45438492]
[1761260289843,2.61,190.44,190.41,1.55179494]
[1761260290142,2.61,190.44,190.43,1.55179494]
[1761260292145,2.61,190.44,190.41,1.55179494]
[1761260294652,2.61,190.44,190.35,53.06042885]
[1761260294653,2.61,190.44,190.39,1.55179494]
[1761260295052,2.61,190.43,190.37,1.55179494]
[1761260297356,2.61,190.43,190.39,1.55179494]
[1761260309361,2.0,190.45,190.41,1.55179494]
[1761260309555,4.85,190.45,190.44,1.55179494]
[1761260312868,4.85,190.45,190.41,2.42487764]
[1761260315263,2.0,190.45,190.41,2.42487764]
[1761260315467,2.85,190.44,190.41,2.42487764]
[1761260315669,2.85,190.44,190.37,4.7261]
[1761260315870,2.85,190.44,190.39,2.42487764]
[1761260317072,2.85,190.44,190.36,2.42487764]
[1761260318969,2.85,190.43,190.36,2.42487764]
[1761260320975,2.85,190.42,190.36,2.42487764]
[1761260323079,4.85,190.42,190.36,2.42487764]
[1761260323875,2.85,190.41,190.36,2.42487764]
[1761260330285,2.85,190.4,190.36,2.42487764]
[1761260332588,4.85,190.4,190.36,2.42487764]
[1761260333191,2.0,190.4,190.36,2.42487764]
[1761260333397,2.85,190.39,190.36,2.42487764]
[1761260336189,4.85,190.39,190.36,2.42487764]
[1761260336994,2.0,190.39,190.36,2.42487764]
[1761260337293,4.85,190.39,190.36,2.42487764]
[1761260340298,2.66,190.38,190.36,2.42487764]
[1761260341097,2.0,190.39,190.36,2.42487764]
[1761260341400,2.0,190.39,190.35,48.1065]
[1761260341598,2.0,190.39,190.38,2.42487764]
[1761260342304,4.66,190.39,190.38,2.42487764]
[1761260346400,2.66,190.42,190.38,45.80487764]
[1761260346599,2.66,190.46,190.41,2.42487764]
[1761260348295,3.84214798,190.49,190.41,2.42487764]
[1761260348503,2.66,190.47,190.46,2.42487764]
[1761260351404,2.66,190.52,190.46,2.42487764]
[1761260351608,2.66,190.52,190.49,2.42487764]
[1761260356811,2.66,190.51,190.49,2.42487764]
[1761260357008,2.66,190.51,190.47,43.38]
[1761260357210,2.66,190.51,190.37,9.68042885]
[1761260357410,2.66,190.51,190.44,2.42487764]
[1761260360206,2.66,190.51,190.41,2.42487764]
[1761260364815,2.66,190.5,190.41,2.42487764]
[1761260366922,2.0,190.5,190.41,2.42487764]
[1761260367124,2.68,190.49,190.41,2.42487764]
[1761260369019,4.68,190.49,190.41,2.42487764]
[1761260369219,2.61,190.48,190.41,2.42487764]
[1761260371824,2.0,190.48,190.41,2.42487764]
[1761260372122,2.61,190.47,190.41,2.42487764]
[1761260374522,2.0,190.47,190.41,2.42487764]
[1761260374723,2.61,190.46,190.43,1.55206704]
[1761260376324,2.0,190.46,190.43,1.55206704]
[1761260376624,2.61,190.45,190.43,1.55206704]
[1761260378722,2.61,190.44,190.43,1.55206704]
[1761260380624,4.61,190.44,190.43,1.55206704]
[1761260383934,2.61,190.43,190.37,4.7261]
[1761260384238,2.61,190.43,190.42,1.55206704]
[1761260401842,2.0,190.44,190.42,1.55206704]
[1761260402048,2.62,190.47,190.39,4.7256]
[1761260402638,2.62,190.46,190.39,4.7256]
[1761260403147,2.62,190.46,190.45,1.55206704]
[1761260404737,2.62,190.46,190.43,1.55206704]
[1761260404938,2.62,190.46,190.41,1.55206704]
[1761260405138,2.62,190.44,190.41,1.55206704]
[1761260407051,2.62,190.44,190.43,1.55206704]
[1761260409754,2.62,190.49,190.43,1.55206704]
[1761260409948,2.62,190.5,190.48,1.55206704]
[1761260410748,2.62,190.49,190.48,1.55206704]
[1761260411853,6.45423521,190.51,190.48,1.55206704]
[1761260412055,2.62,190.53,190.5,1.55206704]
[1761260412356,2.62,190.53,190.52,1.55206704]
[1761260413452,2.62,190.56,190.52,1.55206704]
[1761260413654,2.62,190.55,190.52,1.55206704]
[1761260413956,6.45202045,190.55,190.52,1.55206704]
[1761260414152,2.62,190.55,190.52,1.55206704]
[1761260414546,2.62,190.55,190.54,1.55206704]
[1761260414748,3.83035717,190.56,190.54,1.55206704]
[1761260415055,6.45035717,190.56,190.54,1.55206704]
[1761260415353,2.62,190.56,190.54,1.55206704]
[1761260415550,2.62,190.59,190.54,1.55206704]
[1761260416054,2.62,190.58,190.54,1.55206704]
[1761260416548,2.62,190.58,190.5,1.55206704]
[1761260416748,2.62,190.57,190.5,1.55206704]
[1761260420466,4.62,190.57,190.5,1.55206704]
[1761260420757,2.62,190.56,190.5,1.55206704]
[1761260422457,2.62,190.56,190.52,1.55206704]
[1761260422658,2.62,190.56,190.54,1.55206704]
[1761260423060,2.62,190.56,190.52,1.55206704]
[1761260426260,4.62,190.57,190.54,1.55206704]
[1761260426459,2.0,190.57,190.54,1.55206704]
[1761260426663,2.62,190.56,190.54,1.55206704]
[1761260428763,2.0,190.57,190.54,1.55206704]
[1761260429268,4.66,190.57,190.54,1.55206704]
[1761260430366,2.0,190.57,190.54,1.55206704]
[1761260431965,2.0,190.57,190.54,6.27386704]
[1761260433364,2.0,190.57,190.54,1.55206704]
[1761260433971,2.0,190.57,190.56,1.55206704]
[1761260436674,2.0,190.57,190.55,7.14291326]
[1761260437969,2.0,190.57,190.53,4.7221]
[1761260438173,4.66,190.57,190.53,4.7221]
[1761260441571,2.66,190.56,190.52,7.14351326]
[1761260442080,2.66,190.56,190.53,4.7221]
[1761260443075,2.0,190.57,190.53,4.7221]
[1761260443275,4.66,190.57,190.53,4.7221]
[1761260446686,2.66,190.56,190.53,4.7221]
[1761260448681,2.66,190.56,190.5,43.34]
[1761260448887,2.66,190.56,190.49,2.42121326]
[1761260449786,2.66,190.56,190.51,4.7226]
[1761260451089,2.66,190.56,190.52,4.7223]
[1761260459995,2.0,190.57,190.55,2.42121326]
[1761260460699,2.86,190.62,190.57,4.721]
[1761260460902,2.86,190.62,190.58,2.42121326]
[1761260461398,2.86,190.62,190.58,7.14211326]
[1761260463397,2.86,190.72,190.61,2.42121326]
[1761260463606,2.86,190.72,190.64,2.42121326]
[1761260463903,2.86,190.72,190.67,7.13981326]
[1761260464196,2.86,190.72,190.67,2.42121326]
[1761260464404,2.86,190.76,190.7,2.42121326]
[1761260464599,2.86,190.76,190.69,2.42121326]
[1761260471712,2.86,190.75,190.69,2.42121326]
[1761260473512,2.86,190.75,190.71,2.42121326]
[1761260474912,2.0,190.75,190.71,2.42121326]
[1761260475209,2.86,190.74,190.71,2.42121326]
[1761260477008,2.86,190.74,190.66,4.7187]
[1761260477306,2.86,190.74,190.69,2.42121326]
[1761260477508,2.86,190.73,190.69,2.42121326]
[1761260479212,2.86,190.72,190.69,2.42121326]
[1761260480720,2.86,190.71,190.69,2.42121326]
[1761260482518,2.86,190.7,190.69,2.42121326]
[1761260483718,4.86,190.7,190.69,2.42121326]
[1761260484720,4.86,190.7,190.66,2.42121326]
[1761260484721,2.86,190.69,190.66,2.42121326]
[1761260487022,2.0,190.69,190.66,2.42121326]
[1761260487221,2.73,190.68,190.66,2.42121326]
[1761260488625,2.73,190.68,190.6,43.38]
[1761260488920,2.73,190.68,190.61,2.42121326]
[1761260489120,2.81,190.67,190.61,2.42121326]
[1761260489621,2.81,190.67,190.5,2.42121326]
[1761260489622,2.81,190.67,190.6,2.42121326]
[1761260489827,2.81,190.67,190.5,18.18121326]
[1761260489828,2.81,190.67,190.57,2.42121326]
[1761260490616,2.81,190.66,190.57,2.42121326]
[1761260491720,2.81,190.66,190.6,2.42121326]
[1761260493422,2.81,190.65,190.6,2.42121326]
[1761260495319,2.81,190.64,190.6,2.42121326]
[1761260498626,2.0,190.65,190.63,2.42121326]
[1761260498815,2.0,190.65,190.63,1.54849763]
[1761260499525,2.0,190.65,190.63,6.26809763]
[1761260500427,2.0,190.65,190.63,1.54849763]
[1761260500728,4.81,190.65,190.63,1.54849763]
[1761260501429,2.0,190.65,190.63,1.54849763]
[1761260503533,2.0,190.65,190.63,6.26809763]
[1761260505038,2.0,190.65,190.57,59.18]
[1761260505039,4.81,190.65,190.64,1.54849763]
[1761260506841,4.81,190.65,190.61,6.26859763]
[1761260507741,4.81,190.65,190.62,4.7199]
[1761260510434,2.0,190.65,190.63,1.54849763]
[1761260510838,2.0,190.65,190.63,6.26809763]
[1761260518748,416.86854658,190.76,190.67,4.7187]
[1761260518749,2.81,190.71,190.67,4.7187]
[1761260519047,2.81,190.71,190.67,6.26719763]
[1761260520647,2.81,190.75,190.69,1.54849763]
[1761260522050,2.81,190.75,190.69,6.26659763]
[1761260523245,2.81,190.74,190.69,6.26659763]
[1761260524149,2.81,190.73,190.69,6.26659763]
[1761260530253,2.81,190.73,190.71,1.54849763]
[1761260536759,2.81,190.73,190.66,1.54849763]
[1761260537057,2.81,190.72,190.66,1.54849763]
[1761260537759,2.81,190.72,190.69,1.54849763]
[1761260539453,2.81,190.72,190.7,1.54849763]
[1761260540752,2.81,190.71,190.7,1.54849763]
[1761260542557,4.81,190.71,190.7,1.54849763]
[1761260546063,2.81,190.7,190.69,1.54849763]
[1761260553472,2.81,190.7,190.68,1.54849763]
[1761260555873,2.0,190.71,190.68,1.54849763]
[1761260556171,4.65,190.71,190.7,1.54849763]
[1761260558872,2.65,190.7,190.68,1.54849763]
[1761260560769,2.65,190.7,190.66,7.13760712]
[1761260562081,2.65,190.7,190.66,2.41870712]
[1761260563079,2.65,190.7,190.64,4.7193]
[1761260563278,2.65,190.7,190.64,7.13800712]
[1761260568673,2.65,190.7,190.64,4.7193]
[1761260568872,2.65,190.7,190.64,7.13800712]
[1761260571971,8.58066157,190.7,190.64,7.13800712]
[1761260572178,4.65,190.7,190.64,7.13800712]
[1761260573279,8.58103158,190.7,190.64,7.13800712]
[1761260573480,4.65,190.7,190.64,7.13800712]
[1761260574771,8.58126427,190.7,190.64,7.13800712]
[1761260574983,4.65,190.7,190.64,7.13800712]
[1761260575282,2.65,190.69,190.64,7.13800712]
[1761260577487,2.65,190.69,190.59,68.76042885]
[1761260577488,6.58276523,190.69,190.62,4.7198]
[1761260577680,2.65,190.68,190.62,7.13850712]
[1761260581181,2.65,190.68,190.62,2.41870712]
[1761260581382,2.79,190.66,190.62,2.41870712]
[1761260582885,2.79,190.66,190.6,4.7203]
[1761260582886,2.79,190.66,190.6,2.41870712]
[1761260583286,2.79,190.65,190.6,2.41870712]
[1761260592900,2.79,190.65,190.57,139.68226502]
[1761260593092,2.79,190.65,190.57,96.36226502]
[1761260593292,2.79,190.6,190.57,93.9435579]
[1761260593693,2.79,190.6,190.49,2.41870712]
[1761260593892,2.79,190.59,190.49,2.41870712]
[1761260596914,2.79,190.59,190.48,4.7233]
[1761260597312,2.79,190.59,190.48,7.14200712]
[1761260598016,2.79,190.59,190.48,2.41870712]
[1761260598317,2.0,190.49,190.48,2.41870712]
[1761260599015,2.0,190.49,190.43,2.41870712]
[1761260599213,4.79,190.49,190.43,2.41870712]
[1761260602115,2.0,190.49,190.43,2.41870712]
[1761260602318,2.0,190.49,190.46,2.41870712]
[1761260602517,4.79,190.49,190.46,2.41870712]
[1761260603425,2.79,190.48,190.43,2.41870712]
[1761260609222,2.79,190.48,190.41,48.065]
[1761260609423,2.79,190.48,190.43,2.41870712]
[1761260609922,2.79,190.48,190.41,48.065]
[1761260610131,2.79,190.48,190.42,2.41870712]
[1761260618935,2.79,190.48,190.41,43.34]
[1761260619137,2.79,190.48,190.44,2.41870712]
[1761260620433,2.0,190.45,190.44,2.41870712]
[1761260620832,2.0,190.45,190.44,1.55163605]
[1761260625835,4.67,190.49,190.44,1.55163605]
[1761260626036,4.67,190.49,190.47,1.55163605]
[1761260626236,2.0,190.49,190.47,1.55163605]
[1761260628037,2.0,190.49,190.47,6.27523605]
[1761260631329,2.67,190.59,190.54,1.55163605]
[1761260631535,2.67,190.59,190.56,1.55163605]
[1761260633245,2.67,190.59,190.54,1.55163605]
[1761260638343,2.67,190.59,190.52,6.27393605]
[1761260642542,2.67,190.59,190.54,1.55163605]
[1761260642944,2.67,190.59,190.47,43.36]
[1761260642945,2.0,190.61,190.58,1.55163605]
[1761260644144,4.74,190.61,190.58,1.55163605]
[1761260644541,4.74,190.61,190.52,1.55163605]
[1761260644542,2.74,190.6,190.52,1.55163605]
[1761260644743,1.55163605,190.59,190.5,1.55163605]
[1761260644948,2.74,190.58,190.5,1.55163605]
[1761260645838,2.0,190.61,190.49,4.723]
[1761260645839,2.74,190.55,190.49,4.723]